Cogmind - Beta 16.1 @@@ ROGUE MODE // 2026.02.28 @ 23:55:49 Player: Krysmphoenix Result: Destroyed by QA-ETR(R) with Subdweller Laser Performance ------------- Evolutions (0) 0 Regions Visited (2) 400 Robots Destroyed (15) 75 Value Destroyed (264) 264 Prototype IDs (0) 0 Alien Tech Used (0) 0 Bonus (0) 0 TOTAL SCORE: 739 Bonus ------- None Cogmind --------- Core Integrity 0/250 Matter 270/300 Energy 100/100 System Corruption 0% Temperature Cool (6) Movement Core (50) Location -10/Subcaves Parts ------- > --- POWER (1) -------- (None) > --- PROPULSION (2) --- (None) > --- UTILITY (2) ------ Structural Scanner > --- WEAPON (2) ------- (None) > --- INVENTORY (5) ---- Ion Engine Flight Unit Flight Unit ECM Suite Tractor Beam Peak State ------------ > --- POWER ------------ Light Ion Engine > --- PROPULSION ------- Flight Unit Flight Unit > --- UTILITY ---------- Improved Terrain Scanner Tractor Beam > --- WEAPON ----------- Light Assault Rifle Mining Laser > --- INVENTORY -------- Flight Unit Flight Unit Flight Unit Flight Unit [Rating: 9] Favorites ----------- Power Backup Power I Engine Backup Power I Propulsion Flight Unit Wheel Wheel Flight Unit Flight Unit Utility ECM Suite Device ECM Suite Weapon Grenade Launcher Energy Gun EM Pulse Gun Ballistic Gun Light Assault Rifle Launcher Grenade Launcher Special Weapon Mining Laser Special Melee Weapon Datajack Build | -11 -10 -10 ------- Run | Yrd Mat Sub Slots Evolved . | . . . Power . | . . . Propulsion . | . . . Utility . | . . . Weapon . | . . . Parts Attached 23 | 9 12 2 Power 3 | 1 . 2 Engine 3 | 1 . 2 Core . | . . . Reactor . | . . . Propulsion 10 | 4 6 . Treads . | . . . Leg . | . . . Wheel 4 | 4 . . Hover . | . . . Flight 6 | . 6 . Utility 4 | 1 3 . Device 4 | 1 3 . Storage . | . . . Processor . | . . . Hackware . | . . . Protection . | . . . Artifact . | . . . Weapon 6 | 3 3 . Energy Gun 1 | 1 . . Energy Cannon . | . . . Ballistic Gun 2 | 1 1 . Ballistic Cannon . | . . . Launcher 1 | . 1 . Special Weapon 1 | 1 . . Impact Weapon . | . . . Slashing Weapon . | . . . Piercing Weapon . | . . . Special Melee Weapon 1 | . 1 . Unidentified Prototypes . | . . . Parts Lost 6 | . . 6 Power 1 | . . 1 Propulsion 2 | . . 2 Utility 1 | . . 1 Weapon 2 | . . 2 Highest Loss Streak 6 | . . 6 To Critical Strikes . | . . . Average Backups 3 | . 4 5 Power . | . . 1 Propulsion 2 | . 2 2 Utility . | . . 2 Weapon . | . . . Tool/Special . | . . . Unused Backups 3 | 1 . 2 Power . | . . . Propulsion 2 | 1 . 1 Utility 1 | . . 1 Weapon . | . . . Tool/Special . | . . . Average Slot Usage (%) 93 | . 94 88 Engine 14 | . 14 14 Wheel 3 | . 3 . Flight 24 | . 24 23 Device 24 | . 24 26 Energy Gun 2 | . 2 . Ballistic Gun 6 | . 7 . Launcher 9 | . 9 9 Special Weapon 2 | . 2 . Special Melee Weapon 5 | . 3 12 Peak Build Rating 9 | 8 9 7 Average Rating 7 | 5 7 6 On Entrance 5 | . 8 7 Avg Prop Armor Cover (%) . | . . . Naked Turns . | . . . Heaviest Build 8 | 7 8 8 Greatest Support 26 | 26 20 8 Greatest Overweight (x) . | . . . Average Overweight (x) . | . . . Largest Inventory Capacity 5 | 5 5 5 Average Capacity 5 | 5 5 5 Most Carried 5 | 4 5 5 Average Carried 3 | 1 4 5 Final Capacity 5 | 5 5 5 Final Carried 5 | 1 5 5 Class Distribution -------------------- 55% | Mutant 32% | Infiltrator-Mutant 11% | Scavenger-Mutant Dominant Class ---------------- Mutant | -10/Materials Infiltrator-Mutant | -10/Subcaves Resources | -11 -10 -10 ----------- Run | Yrd Mat Sub Matter Collected 585 | 326 259 . Remotely 135 | . 135 . Salvage Created 395 | 179 216 . Parts 27 | 9 18 . Haulers Intercepted . | . . . Recyclers Shooed 1 | . 1 . Parts Field Recycled . | . . . Retrieved Matter . | . . . Parts Self-Destructed 4 | . . 4 Prevented . | . . . Parts Restored . | . . . Kills | -11 -10 -10 ------- Run | Yrd Mat Sub Combat Hostiles Destroyed 11 | . 11 . Guns 5 | . 5 . AOE 6 | . 6 . Classes Destroyed 5 | 3 2 . Worker 1 | 1 . . Tunneler 2 | 2 . . Recycler 1 | 1 . . Swarmer 6 | . 6 . Grunt 5 | . 5 . Best Kill Streak 3 | 1 3 . Combat Bots Only 3 | . 3 . Max Kills in Single Turn 1 | 1 1 . Gunslinging . | . . . Exploded 1 | . 1 . Melee . | . . . Uniques/NPCs Destroyed . | . . . Combat | -11 -10 -10 -------- Run | Yrd Mat Sub Hostile Shots Fired 53 | . 22 31 Missed 20 | . 11 9 Hits 33 | . 11 22 Projectile 33 | . 11 22 Critical Strikes 1 | . 1 . Damage Taken 599 | 40 114 445 Core 264 | . 37 227 Absorbed by Shields . | . . . Regen/Repaired (Parts) 36 | . 36 . Core Remaining (%) 100 | 100 . . Volleys Fired 58 | 26 28 4 Largest 2 | 2 2 1 Hottest 120 | 60 120 30 Shots Fired 66 | 32 30 4 Gun 51 | 32 19 . Cannon . | . . . Launcher 13 | . 9 4 Special 2 | . 2 . Kinetic 45 | 26 19 . Thermal 2 | . 2 . Explosive 13 | . 9 4 Electromagnetic 6 | 6 . . Robot Hit Streak 4 | 4 4 2 Robot Miss Streak 3 | 3 3 2 Penetration Max . | . . . Secondary Targets . | . . . Shots Hit Robots 41 | 19 19 3 Core Hits 22 | 6 16 . Critical Kills . | . . . Critical Parts Destroyed . | . . . Critical Strikes . | . . . Melee Attacks 4 | . 3 1 Impact . | . . . Slashing . | . . . Piercing . | . . . Sneak Attacks 2 | . 2 . Combat Hostiles . | . . . Follow-up Attacks . | . . . Damage Inflicted 890 | 222 467 201 Guns 269 | 177 92 . Cannons . | . . . Explosions 597 | 45 351 201 Melee . | . . . Ramming . | . . . Kinetic 228 | 136 92 . Thermal 69 | 45 24 . Explosive 552 | . 351 201 Electromagnetic 41 | 41 . . Impact . | . . . Slashing . | . . . Piercing . | . . . Highest Corruption . | . . . Average Corruption . | . . . Corruption Purged . | . . . Corruption Blocked . | . . . Overload Shots . | . . . Overflow Damage 5 | 5 . . Projectiles . | . . . Explosions 5 | 5 . . Melee . | . . . Knockbacks . | . . . Impact . | . . . Kinetic . | . . . Secondary . | . . . Self-Inflicted Damage 40 | 40 . . Shots 1 | 1 . . Rammed . | . . . Targets Rammed . | . . . Kicked . | . . . Crushed . | . . . Highest Temperature 50 | 32 50 . Average Temperature 14 | 16 13 . Received Heat Transfer 168 | . 36 132 Siege Activations . | . . . Martial Activations . | . . . Shielding Activations . | . . . Robots Disrupted . | . . . Combat Hostiles . | . . . Robots Corrupted . | . . . Combat Hostiles . | . . . Parts Fried . | . . . Impact Corruptions . | . . . Robots Melted . | . . . Combat Hostiles . | . . . Parts Melted . | . . . Heat Transferred 100 | 50 50 . Parts Sabotaged . | . . . Parts Stolen . | . . . Parts Stripped . | . . . Power Chain Reactions 1 | 1 . . Alert | -11 -10 -10 ------- Run | Yrd Mat Sub Maximum Alert Level . | . . . Low Security (%) 100 | 100 100 . Level 1 . | . . . Level 2 . | . . . Level 3 . | . . . Level 4 . | . . . Level 5 . | . . . High Security . | . . . Max Security . | . . . Peak Influence 171 | 5 171 . Initial . | . . . Average 86 | 1 107 . Influence Increases 375 | 20 355 . Destroy 0b10 Robot/C 220 | . 220 . Destroy 0b10 Robot/NC 20 | 20 . . Destroy Leader 50 | . 50 . Successful Hack 15 | . 15 . Destroy Structure 40 | . 40 . Partial Spotted 15 | . 15 . Lose Combat Pursuer 15 | . 15 . Influence Decreases 375 | 20 250 105 Entered New Map 51 | . . 51 Time Decay 300 | 20 250 30 Lost Part 24 | . . 24 Squads Dispatched 2 | . 2 . Investigation . | . . . Extermination . | . . . Reinforcement 2 | . 2 . Assault . | . . . Garrison . | . . . Intercept . | . . . Searches Triggered . | . . . Construction Impeded . | . . . Haulers Reinforced . | . . . Active Scanning Responses . | . . . Cargo Convoy Interrupts . | . . . Stealth | -11 -10 -10 --------- Run | Yrd Mat Sub Distress Signals . | . . . Communications Jammed . | . . . Distress Signals . | . . . Times Spotted 27 | . 25 2 Peak Tracking Total 5 | . 5 2 Tactical Retreats 1 | . 1 . Traps | -11 -10 -10 ------- Run | Yrd Mat Sub Traps Triggered . | . . . Indirectly . | . . . Trap Hack Attempts . | . . . Triggered . | . . . Disarmed . | . . . Reprogrammed . | . . . Reused . | . . . Traps Extracted . | . . . Installed . | . . . Triggered . | . . . Machines | -11 -10 -10 ---------- Run | Yrd Mat Sub Machines Disabled . | . . . Max in Single Turn . | . . . Machines Repaired . | . . . Machines Dismantled . | . . . Machines Sabotaged . | . . . Overloaded Fab Kills . | . . . Hacking | -11 -10 -10 --------- Run | Yrd Mat Sub Machines Accessed 8 | . 8 . Terminals 5 | . 5 . Fabricators . | . . . Repair Stations 1 | . 1 . Recycling Units 2 | . 2 . Scanalyzers . | . . . Garrison Access . | . . . Total Hacks 28 | . 28 . Successful 14 | . 14 . Failed 14 | . 14 . Catastrophic 1 | . 1 . Database Lockouts . | . . . Manual 24 | . 24 . Terminals 23 | . 23 . Fabricators . | . . . Repair Stations 3 | . 3 . Recycling Units 2 | . 2 . Scanalyzers . | . . . Garrison Access . | . . . Terminal Hacks 1 | . 1 . Record 1 | . 1 . Fabricator Hacks . | . . . Repair Station Hacks 3 | . 3 . Scan Component 1 | . 1 . Repair 1 | . 1 . Refit 1 | . 1 . Recycling Unit Hacks 2 | . 2 . Report Inventory 2 | . 2 . Scanalyzer . | . . . Garrison Access Hacks . | . . . Unauthorized Hacks 7 | . 7 . Terminals 7 | . 7 . Assimilate 2 | . 2 . Botnet 5 | . 5 . Fabricators . | . . . Repair Stations . | . . . Recycling Units . | . . . Scanalyzers . | . . . Garrison Access . | . . . Data Cores Recovered . | . . . Used . | . . . Hacking Detections 6 | . 6 . Full Trace Events . | . . . Feedback Events . | . . . Feedback Blocked . | . . . Robot Schematics Acquired . | . . . Robots Built . | . . . Authchips . | . . . Time . | . . . Total Robot Build Rating . | . . . Part Schematics Acquired . | . . . Parts Built . | . . . Authchips . | . . . Time . | . . . Total Part Build Rating . | . . . Part Studies Acquired . | . . . Parts Repaired 1 | . 1 . Time 26 | . 26 . Parts Recycled . | . . . Recycled Matter . | . . . Retrieved Matter . | . . . Retrieved Components . | . . . Parts Scanalyzed . | . . . Part Schematics Acquired . | . . . Parts Damaged . | . . . Bothacking | -11 -10 -10 ------------ Run | Yrd Mat Sub Used RIF Installer . | . . . Robots Hacked 3 | . 2 1 Non-combat 2 | . 2 . Combat 1 | . . 1 Robot Hacks Applied 4 | . 3 1 parse_system 2 | . 1 1 no_distress 1 | . 1 . check_alert 1 | . 1 . Relay Couplers Released . | . . . Fabnet Peak Effective % . | . . . Robots Rewired . | . . . Allies Hacked . | . . . Hacks Repelled . | . . . Allies | -11 -10 -10 -------- Run | Yrd Mat Sub Total Allies . | . . . Largest Group . | . . . Highest-Rated Group . | . . . Highest-Rated Ally . | . . . Total Orders . | . . . Ally Attacks . | . . . Total Damage . | . . . Kills . | . . . Allies Corrupted . | . . . Allies Melted . | . . . Intel | -11 -10 -10 ------- Run | Yrd Mat Sub Active Infowar (turns) 711 | 34 588 89 Terrain 347 | 34 313 . Structural 279 | . 190 89 ECM 294 | . 275 19 Robot Analysis Total . | . . . Derelict Logs Recovered . | . . . Drone Launches . | . . . Drone Recoveries . | . . . Exploration | -11 -10 -10 ------------- Run | Yrd Mat Sub Turns Passed 835 | 151 595 89 Spaces Moved 1137 | 87 954 96 Core 6 | 6 . . Treads . | . . . Legs . | . . . Wheels 137 | 81 56 . Hover . | . . . Flight 994 | . 898 96 Fastest Speed 37 | 50 37 37 Average Speed 42 | 81 39 37 Slowest Speed 90 | 90 80 37 Overloaded Moves . | . . . Propulsion Burnouts . | . . . Robots Hopped 6 | . 6 . Potential Cave-ins . | . . . Cave-ins Triggered . | . . . Exploration Rate (%) 37 | 4 99 8 Regions Visited 2 Branch Regions 1 Pre-discovered Areas . | . . . Known Exits Taken . | . . . Unknown Exits Taken 2 | 1 1 . Scrap Searched . | . . . Spaces Dug . | . . . Terrain Destroyed 82 | . 65 17 Melee . | . . . Projectile . | . . . AOE 82 | . 65 17 Terrain Rammed . | . . . Walls Destroyed . | . . . Machines Disabled . | . . . Actions | -11 -10 -10 --------- Run | Yrd Mat Sub Total 1419 | 140 1135 144 Wait 151 | 1 109 41 Move 1123 | 86 941 96 Hop 6 | . 6 . Pick Up 31 | 12 19 . Fast Attach . | . . . Attach 9 | 6 3 . Detach . | . . . Swap 18 | 4 12 2 Drop 19 | 5 14 . Fire 58 | 26 28 4 Melee 4 | . 3 1 Ram . | . . . Kick . | . . . Crush . | . . . Escape Stasis . | . . . Rewire . | . . . Trap . | . . . Miscellaneous . | . . . Route ------- -11/Scrapyard -10/Materials (discovered 6 exits: [*Mat x3] / [*Min x2] / [*Sub]) -10/Subcaves History --------- Turn | Location | Event 15 | -11/Scrapyard | Discovered new exit (range 16) 152 | -11/Scrapyard | Entered Materials 239 | -10/Materials | Discovered new exit (range 11) 430 | -10/Materials | Repaired Lgt. Ion Engine 579 | -10/Materials | Discovered new exit (range 15) 579 | -10/Materials | Discovered new exit (range 7) 635 | -10/Materials | Discovered new exit (range 15) 686 | -10/Materials | Discovered new exit (range 3) 745 | -10/Materials | Discovered new exit (range 7) 747 | -10/Materials | Entered Subcaves 748 | -10/Subcaves | Approached by a straggling Scientist 820 | -10/Subcaves | Core integrity fell below 50% 830 | -10/Subcaves | Core integrity fell below 20% 836 | -10/Subcaves | Destroyed by QA-ETR(R) with Subdweller Laser Last Messages --------------- GOAL=ESCAPE 00748_ 6N-0TA(c): "Thank the algorithms! I was beginning to lose hope I'd never make it past all the Subs lurking out here." 00751_ 6N-0TA(c): "Hey, let me tag along and I can get us both out of this nasty situation. At least I think I can... The group I got separated from was talking about a shortcut back to the UFD." 6N-0TA(c): "I think it's somewhere south of here" 00801_ Grenade Launcher destroyed. 00815_ Jacked QA-ETR(R)... >>parse_system Reading system data... 00817_ Flight Unit destroyed. 00823_ ECM Suite destroyed. 00826_ Flight Unit destroyed. 00827_ Datajack destroyed. 00833_ Backup Power I destroyed. Map ----- +----------------------------------------------------+ | ?????????????????????????????????????????????????? | | ?????????????????????????????????????????????????? | | ?????????????????????????????????????????????????? | | ?????????????????????????????????????????????????? | | ?????????????????????????????????????????????????? | | ?????????????????????????????????????????????????? | | ?????????????????????????????????????????????????? | | ?????????????????????????????????????????????????? | | ?????????????????????????????????????????????????? | | ?????????????????????????????????????????????????? | | ?????????????????????????????????????????????????? | | ?????????????????????????????????????????????????? | | ?????????????????????????????????????????????????? | | ?????????????????????????????????????????????????? | | ?????????????????????????????????????????????????? | | ????????????????????????????#######??????????????? | | ???????????????????????????#########?????????????? | | ??????????????????????????## ###"????????????? | | ??????????????????????###### ## ???????????? | | ??????????????????????##### " ????????? | | ??????????????????????## ????????? | | ??????????????????????### ##????????? | | ??????????????????????### # "" ##????????? | | ??????????????????????## R##? "" ? ##????????? | | ??????????????????????##R ##?? ## ?????????????? | | ??????????????????????## @##?? ###???????????????? | | ??????????????????????## ###????????????????????? | | ??????????????????????## ########???????????????? | | ??????????????????????##" ########??????????????? | | ??????????????????????### ### ###??????????????? | | ??????????????????????#### ## ##??????????????? | | ???????????????????????### ##??????????????? | | ????????????????????????## ##??????????????? | | ????????????????????????## ##??????????????? | | ????????????????????????### ####??????????????? | | ????????????????????????#### ####??????????????? | | ?????????????????????????### ##????????????????? | | ??????????????????????????## ##????????????????? | | ??????????????????????????## #####?????????????? | | ?????????????????????????### ###########???????? | | ???????????????????????##### ### #########??????? | | ??????????????????????##### ## ### ###??????? | | ?????????##???????????### ##??????? | | ????????? ???????#### ######??????? | | ?????????? ??????##### ## #######??????? | | ?????????# ??????### #### ####??????????? | | ????????### ??????## # #########???????????? | | ????????### ??????## # #########????????????? | | ????????## ??????### ### ###??????????????????? | | ????????## ###??### # ##???????????????????? | +----------------------------------------------------+ Best States ------------- Heat Dissipation 25 Energy Generation 10 Energy Capacity 125 Matter Stores 300 Matter Capacity 300 Sight Range 16 Terrain Scan Range 16 Terrain Scan Density 10 ECM Strength 1 Evasion (%) 62 Item Schematics ----------------- None Robot Schematics ------------------ None Fabricated ------------ Nothing Repaired ---------- Lgt. Ion Engine | 10% | -10/Materials Studied --------- None Alien Tech Used ----------------- None Achievements -------------- Junior Dev Use The Force root@ Challenges ------------ None Game ------ Seed TrapSmartFlightbrick Manual? 0 Play Time 00:20:40 Cumulative 11.6 hours Start 2026.02.28 @ 23:36:38 End 2026.02.28 @ 23:55:49 Sessions 1 Manual Loads 0 Difficulty Rogue Special Mode None Game No. 19 Rogue 16 Adventurer 3 Explorer 0 Win Type - Total 1 Types 1/0/0/0/0/0/0/0/0/0 Lore% 10 Gallery% 16 Achievement% 18 Wizard Run 0 Options --------- Layout 1 ASCII 0 Keyboard 0 Movement Numpad Keybinds 0 Fullscreen 2 Font 24/Proggy Map View 50x35 Zoom Use 0% Tactical HUD 1 Map Filters NONE Filters NONE Steam 1 RUN: 03a958be-4d33-460b-bb13-87d57ed99b7f